fUSD/lending_fUSD_20240627
["ID","MTS","AMOUNT","RATE_DAILY","PERIOD"]
[330476279,1719470760293,-500.0,0.00044657,120]
[330476280,1719470760342,-500.0,0.00044657,120]
[330476281,1719470760389,-500.0,0.00044657,120]
[330476282,1719470760440,-500.0,0.00044657,120]
[330476283,1719470760487,-500.0,0.00044657,120]
[330476284,1719470760535,-500.0,0.00044657,120]
[330476285,1719470760582,-500.0,0.00044657,120]
[330476286,1719470760631,-500.0,0.00044657,120]
[330476287,1719470760680,-3044.53,0.00044657,120]
[330476288,1719470760725,-500.0,0.00044657,120]
[330476289,1719470760770,-500.0,0.00044657,120]
[330476290,1719470760816,-500.0,0.00044657,120]
[330476291,1719470760864,-500.0,0.00044657,120]
[330476292,1719470760910,-500.0,0.00044657,120]
[330476293,1719470760955,-500.0,0.00044657,120]
[330476294,1719470761001,-500.0,0.00044657,120]
[330476295,1719470761048,-500.0,0.00044657,120]
[330476296,1719470761095,-500.0,0.00044657,120]
[330476297,1719470761142,-500.0,0.00044657,120]
[330476298,1719470761189,-512.44294806,0.00044657,120]
[330476299,1719470761235,-500.0,0.00044657,120]
[330476300,1719470761286,-799.32,0.00044657,120]
[330476301,1719470761334,-500.0,0.00044657,120]
[330476302,1719470761380,-522.46417514,0.00044657,120]
[330476303,1719470761428,-500.0,0.00044657,120]
[330476304,1719470761474,-500.0,0.00044657,120]
[330476305,1719470761520,-500.0,0.00044657,120]
[330476306,1719470761567,-500.0,0.00044657,120]
[330476307,1719470761617,-575.5407037,0.00044657,120]
[330476308,1719470761663,-500.0,0.00044657,120]
[330476309,1719470761708,-549.08142967,0.00044657,120]
[330476310,1719470761756,-1576.33,0.00044657,120]
[330476311,1719470761802,-500.0,0.00044657,120]
[330476312,1719470761848,-500.0,0.00044657,120]
[330476313,1719470761898,-500.0,0.00044657,120]
[330476314,1719470761941,-500.0,0.00044657,120]
[330476315,1719470761987,-500.0,0.00044657,120]
[330476316,1719470762033,-500.0,0.00044657,120]
[330476317,1719470762082,-500.0,0.00044657,120]
[330476318,1719470762129,-500.0,0.00044657,120]
[330476319,1719470762176,-500.0,0.00044657,120]
[330476320,1719470762222,-1294.0,0.00044657,120]
[330476321,1719470762268,-500.0,0.00044657,120]
[330476322,1719470762476,-579.13,0.00044657,120]
[330476323,1719470762520,-500.0,0.00044657,120]
[330476324,1719470762563,-1640.8,0.00044657,120]
[330476325,1719470762608,-500.0,0.00044657,120]
[330476326,1719470762654,-3889.99,0.00044657,120]
[330476327,1719470762698,-1036.79,0.00044657,120]
[330476328,1719470762740,-500.0,0.00044657,120]
[330476329,1719470762782,-510.89495232,0.00044657,120]
[330476330,1719470762828,-500.0,0.00044657,120]
[330476331,1719470762874,-924.79,0.00044657,120]
[330476332,1719470762926,-500.0,0.00044657,120]
[330476333,1719470762973,-524.450588,0.00044657,120]
[330476334,1719470763020,-1159.09,0.00044657,120]
[330476335,1719470763067,-500.0,0.00044657,120]
[330476336,1719470763116,-1465.18,0.00044657,120]
[330476337,1719470763164,-500.0,0.00044657,120]
[330476338,1719470763218,-500.0,0.00044657,120]
[330476339,1719470763267,-500.0,0.00044657,120]
[330476340,1719470763315,-500.0,0.00044657,120]
[330476341,1719470763363,-500.0,0.00044657,120]
[330476342,1719470763410,-500.0,0.00044657,120]
[330476343,1719470763461,-500.0,0.00044657,120]
[330476344,1719470763514,-614.57,0.00044657,120]
[330476345,1719470763567,-932.71,0.00044657,120]
[330476346,1719470763618,-500.0,0.00044657,120]
[330476347,1719470763668,-500.0,0.00044657,120]
[330476348,1719470763719,-500.0,0.00044657,120]
[330476349,1719470763769,-1664.59,0.00044657,120]
[330476350,1719470763820,-500.0,0.00044657,120]
[330476351,1719470763869,-538.25005935,0.00044657,120]
[330476352,1719470763918,-1009.42,0.00044657,120]
[330476353,1719470763966,-500.0,0.00044657,120]
[330476354,1719470764014,-829.26,0.00044657,120]
[330476355,1719470764061,-637.61,0.00044657,120]
[330476356,1719470764108,-500.0,0.00044657,120]
[330476357,1719470764155,-500.0,0.00044657,120]
[330476358,1719470764207,-500.0,0.00044657,120]
[330476359,1719470764253,-507.05395991,0.00044657,120]
[330476360,1719470764303,-500.0,0.00044657,120]
[330476361,1719470764352,-1581.4,0.00044657,120]
[330476362,1719470764400,-500.0,0.00044657,120]
[330476363,1719470764447,-500.0,0.00044657,120]
[330476364,1719470764493,-500.0,0.00044657,120]
[330476365,1719470764539,-485.17759381,0.00044657,120]
[330476366,1719470764588,-500.0,0.00044657,120]
[330476367,1719470764633,-500.0,0.00044657,120]
[330476368,1719470764679,-500.0,0.00044657,120]
[330476369,1719470764724,-500.0,0.00044657,120]
[330476370,1719470764772,-500.0,0.00044657,120]
[330476371,1719470764822,-505.155845,0.00044657,120]
[330476372,1719470764870,-500.0,0.00044657,120]
[330476373,1719470764916,-798.16,0.00044657,120]
[330476374,1719470764962,-1903.57,0.00044657,120]
[330476375,1719470765008,-500.0,0.00044657,120]
[330476376,1719470765054,-500.0,0.00044657,120]
[330476377,1719470765101,-579.43,0.00044657,120]
[330476378,1719470765146,-500.0,0.00044657,120]
[330476379,1719470765190,-500.0,0.00044657,120]
[330476380,1719470765237,-585.48,0.00044657,120]
[330476381,1719470765287,-500.0,0.00044657,120]
[330476382,1719470765332,-500.0,0.00044657,120]
[330476383,1719470765379,-500.0,0.00044657,120]
[330476384,1719470765426,-608.79,0.00044657,120]
[330476385,1719470765473,-693.21,0.00044657,120]
[330476386,1719470765524,-500.0,0.00044657,120]
[330476387,1719470765570,-500.0,0.00044657,120]
[330476388,1719470765621,-500.0,0.00044657,120]
[330476389,1719470765675,-962.19,0.00044657,120]
[330476390,1719470765722,-494.91247617,0.00044657,120]
[330476391,1719470765770,-582.13,0.00044657,120]
[330476392,1719470765818,-500.0,0.00044657,120]
[330476393,1719470765868,-500.0,0.00044657,120]
[330476394,1719470765915,-500.0,0.00044657,120]
[330476395,1719470765966,-558.82,0.00044657,120]
[330476396,1719470766016,-500.0,0.00044657,120]
[330476397,1719470766067,-500.0,0.00044657,120]
[330476398,1719470766120,-535.37,0.00044657,120]
[330476399,1719470766172,-500.0,0.00044657,120]
[330476400,1719470766222,-945.8,0.00044657,120]
[330476401,1719470766274,-641.46,0.00044657,120]
[330476402,1719470766326,-500.0,0.00044657,120]
[330476403,1719470766376,-743.41,0.00044657,120]
[330476404,1719470766428,-555.35,0.00044657,120]
[330476405,1719470766480,-500.0,0.00044657,120]
[330476406,1719470766528,-500.0,0.00044657,120]
[330476407,1719470766581,-3424.05,0.00044657,120]
[330476408,1719470766628,-500.0,0.00044657,120]
[330476409,1719470766680,-2292.12,0.00044657,120]
[330476410,1719470766729,-511.38,0.00044657,120]
[330476411,1719470766776,-556.1,0.00044657,120]
[330476412,1719470767199,-1789.95,0.00044657,120]
[330476413,1719470767262,-677.72,0.00044657,120]
[330476414,1719470767312,-1139.96,0.00044657,120]
[330476415,1719470767361,-2037.17,0.00044657,120]
[330476416,1719470767409,-1069.35,0.00044657,120]
[330476417,1719470767461,-527.11000383,0.00044657,120]
[330476418,1719470767510,-500.0,0.00044657,120]
[330476419,1719470767559,-500.0,0.00044657,120]
[330476420,1719470767613,-500.0,0.00044657,120]
[330476421,1719470767665,-500.0,0.00044657,120]
[330476422,1719470767711,-1597.79,0.00044657,120]
[330476423,1719470767759,-994.61,0.00044657,120]
[330476424,1719470767806,-500.0,0.00044657,120]
[330476425,1719470767853,-500.0,0.00044657,120]
[330476426,1719470767899,-500.0,0.00044657,120]
[330476427,1719470767946,-500.0,0.00044657,120]
[330476428,1719470767991,-500.0,0.00044657,120]
[330476429,1719470768036,-500.0,0.00044657,120]
[330476430,1719470768084,-1273.36,0.00044657,120]
[330476431,1719470768131,-500.0,0.00044657,120]
[330476432,1719470768180,-512.1428699,0.00044657,120]
[330476433,1719470768233,-500.0,0.00044657,120]
[330476434,1719470768280,-591.6,0.00044657,120]
[330476435,1719470768327,-11245.17,0.00044657,120]
[330476436,1719470768376,-500.0,0.00044657,120]
[330476437,1719470768424,-500.0,0.00044657,120]
[330476438,1719470768474,-500.0,0.00044657,120]
[330476439,1719470768522,-500.0,0.00044657,120]
[330476440,1719470768569,-500.0,0.00044657,120]
[330476441,1719470768617,-500.0,0.00044657,120]
[330476442,1719470768665,-1337.87,0.00044657,120]
[330476443,1719470768713,-637.26,0.00044657,120]
[330476444,1719470768761,-388.23145716,0.00044657,120]
[330476445,1719470768817,-500.0,0.00044657,120]
[330476446,1719470768870,-500.0,0.00044657,120]
[330476447,1719470768919,-500.0,0.00044657,120]
[330476448,1719470768967,-500.0,0.00044657,120]
[330476449,1719470769013,-502.69,0.00044657,120]
[330476450,1719470769061,-500.0,0.00044657,120]
[330476451,1719470769106,-725.24,0.00044657,120]
[330476452,1719470769155,-500.0,0.00044657,120]
[330476453,1719470769205,-500.0,0.00044657,120]
[330476454,1719470769254,-1308.09,0.00044657,120]
[330476455,1719470769304,-500.0,0.00044657,120]
[330476456,1719470769352,-500.0,0.00044657,120]
[330476457,1719470769402,-512.90864137,0.00044657,120]
[330476458,1719470769442,-500.0,0.00044657,120]
[330476459,1719470769481,-500.0,0.00044657,120]
[330476460,1719470769519,-718.58,0.00044657,120]
[330476461,1719470769558,-500.0,0.00044657,120]
[330476462,1719470769597,-500.0,0.00044657,120]
[330476463,1719470769636,-500.0,0.00044657,120]
[330476464,1719470769673,-946.37,0.00044657,120]
[330476465,1719470769711,-500.0,0.00044657,120]
[330476466,1719470769748,-500.0,0.00044657,120]
[330476467,1719470769784,-500.0,0.00044657,120]
[330476468,1719470769822,-500.0,0.00044657,120]
[330476469,1719470769860,-500.0,0.00044657,120]
[330476470,1719470769898,-500.0,0.00044657,120]
[330476471,1719470769935,-500.0,0.00044657,120]
[330476472,1719470769972,-500.0,0.00044657,120]
[330476473,1719470770011,-500.0,0.00044657,120]
[330476474,1719470770049,-502.42842191,0.00044657,120]
[330476475,1719470770090,-500.0,0.00044657,120]
[330476476,1719470770128,-757.03,0.00044657,120]
[330476477,1719470770164,-500.0,0.00044657,120]
[330476478,1719470770203,-500.0,0.00044657,120]
[330476479,1719470770242,-500.0,0.00044657,120]
[330476480,1719470770281,-549.18,0.00044657,120]
[330476481,1719470770321,-1278.0,0.00044657,120]
[330476482,1719470770363,-566.01,0.00044657,120]
[330476483,1719470770403,-500.0,0.00044657,120]
[330476484,1719470770543,-500.0,0.00044657,120]
[330476485,1719470770583,-500.0,0.00044657,120]
[330476486,1719470770629,-500.0,0.00044657,120]
[330476487,1719470770668,-2289.93,0.00044657,120]
[330476488,1719470770707,-500.0,0.00044657,120]
[330476489,1719470770744,-1533.08,0.00044657,120]
[330476490,1719470770780,-500.0,0.00044657,120]
[330476491,1719470770818,-2331.46,0.00044657,120]
[330476492,1719470770855,-500.0,0.00044657,120]
[330476493,1719470770891,-500.0,0.00044657,120]
[330476494,1719470770927,-1927.68,0.00044657,120]
[330476495,1719470770962,-500.0,0.00044657,120]
[330476496,1719470770998,-27172.75,0.00044657,120]
[330476497,1719470771034,-26040.55,0.00044657,120]
[330476498,1719470771070,-500.0,0.00044657,120]
[330476499,1719470771105,-500.0,0.00044657,120]
[330476500,1719470771141,-500.0,0.00044657,120]
[330476501,1719470771176,-500.0,0.00044657,120]
[330476502,1719470771214,-500.0,0.00044657,120]
[330476503,1719470771251,-500.0,0.00044657,120]
[330476504,1719470771289,-500.0,0.00044657,120]
[330476505,1719470771326,-200.97263821,0.00044657,120]
[330476506,1719470771367,-500.0,0.00044657,120]
[330476507,1719470771403,-500.0,0.00044657,120]
[330476508,1719470771439,-500.0,0.00044657,120]
[330476509,1719470771475,-500.0,0.00044657,120]
[330476510,1719470771509,-500.0,0.00044657,120]
[330476511,1719470771543,-500.0,0.00044657,120]
[330476512,1719470771577,-500.0,0.00044657,120]
[330476513,1719470771612,-586.27,0.00044657,120]
[330476514,1719470771646,-500.0,0.00044657,120]
[330476515,1719470771681,-671.6,0.00044657,120]
[330476516,1719470771714,-500.0,0.00044657,120]
[330476517,1719470771749,-1323.97,0.00044657,120]
[330476518,1719470771783,-500.0,0.00044657,120]
[330476519,1719470771821,-500.0,0.00044657,120]
[330476520,1719470771855,-500.0,0.00044657,120]
[330476521,1719470771890,-687.5,0.00044657,120]
[330476522,1719470771923,-549.1711981,0.00044657,120]
[330476523,1719470771956,-500.0,0.00044657,120]
[330476524,1719470771989,-500.0,0.00044657,120]
[330476525,1719470772022,-500.0,0.00044657,120]
[330476526,1719470772056,-516.64,0.00044657,120]
[330476527,1719470772090,-500.0,0.00044657,120]
[330476528,1719470772126,-500.0,0.00044657,120]
[330476529,1719470772162,-784.71,0.00044657,120]
[330476530,1719470772194,-564.87,0.00044657,120]
[330476531,1719470772227,-500.0,0.00044657,120]
[330476532,1719470772261,-500.0,0.00044657,120]
[330476533,1719470772293,-500.0,0.00044657,120]
[330476534,1719470772327,-500.0,0.00044657,120]
[330476535,1719470772363,-500.0,0.00044657,120]
[330476536,1719470772405,-500.0,0.00044657,120]
[330476537,1719470772443,-500.0,0.00044657,120]
[330476538,1719470772478,-542.11,0.00044657,120]
[330476539,1719470772510,-500.0,0.00044657,120]
[330476540,1719470772543,-500.0,0.00044657,120]
[330476541,1719470772576,-500.0,0.00044657,120]
[330476542,1719470772612,-500.0,0.00044657,120]
[330476543,1719470772645,-500.0,0.00044657,120]
[330476544,1719470772680,-1797.8,0.00044657,120]
[330476545,1719470772715,-213.67376235,0.00044657,120]
[330476546,1719470772749,-829.66,0.00044657,120]
[330476547,1719470772784,-1396.29,0.00044657,120]
[330476548,1719470772818,-500.0,0.00044657,120]
[330476549,1719470772851,-500.0,0.00044657,120]
[330476550,1719470772886,-782.33,0.00044657,120]
[330476551,1719470772921,-784.1,0.00044657,120]
[330476552,1719470772955,-754.87,0.00044657,120]
[330476553,1719470772990,-500.0,0.00044657,120]
[330476554,1719470773024,-500.0,0.00044657,120]
[330476555,1719470773057,-500.0,0.00044657,120]
[330476556,1719470773092,-500.0,0.00044657,120]
[330476557,1719470773127,-500.57,0.00044657,120]
[330476558,1719470773162,-500.0,0.00044657,120]
[330476559,1719470773199,-500.0,0.00044657,120]
[330476560,1719470773235,-1600.16,0.00044657,120]
[330476561,1719470773272,-590.95643973,0.00044657,120]
[330476562,1719470773309,-500.0,0.00044657,120]
[330476563,1719470773344,-500.0,0.00044657,120]
[330476564,1719470773378,-500.0,0.00044657,120]
[330476565,1719470773413,-606.55985174,0.00044657,120]
[330476566,1719470773450,-500.0,0.00044657,120]
[330476567,1719470773486,-500.0,0.00044657,120]
[330476568,1719470773523,-561.17,0.00044657,120]
[330476569,1719470773559,-1509.02,0.00044657,120]
[330476570,1719470773596,-500.0,0.00044657,120]
[330476571,1719470773632,-2361.82,0.00044657,120]
[330476572,1719470773672,-500.0,0.00044657,120]
[330476573,1719470773710,-1563.42,0.00044657,120]
[330476574,1719470773745,-500.0,0.00044657,120]
[330476575,1719470773781,-500.0,0.00044657,120]
[330476576,1719470773817,-1273.2,0.00044657,120]
[330476577,1719470773854,-856.57,0.00044657,120]
[330476578,1719470773889,-500.0,0.00044657,120]
[330476579,1719470773926,-754.02,0.00044657,120]
[330476580,1719470773960,-532.67,0.00044657,120]
[330476581,1719470773996,-782.31,0.00044657,120]
[330476582,1719470774030,-500.0,0.00044657,120]
[330476583,1719470774066,-500.0,0.00044657,120]
[330476584,1719470774101,-500.0,0.00044657,120]
[330476585,1719470774137,-4687.31,0.00044657,120]
[330476586,1719470774172,-687.18,0.00044657,120]
[330476587,1719470774209,-500.0,0.00044657,120]
[330476588,1719470774374,-500.0,0.00044657,120]
[330476589,1719470774415,-500.0,0.00044657,120]
[330476590,1719470774452,-529.25,0.00044657,120]
[330476591,1719470774488,-780.27,0.00044657,120]
[330476592,1719470774523,-500.0,0.00044657,120]
[330476593,1719470774558,-1044.52,0.00044657,120]
[330476594,1719470774592,-500.0,0.00044657,120]
[330476595,1719470774627,-1151.75,0.00044657,120]
[330476596,1719470774661,-520.35,0.00044657,120]
[330476597,1719470774696,-2501.01,0.00044657,120]
[330476598,1719470774730,-986.4,0.00044657,120]
[330476599,1719470774765,-500.26,0.00044657,120]
[330476600,1719470774799,-500.0,0.00044657,120]
[330476601,1719470774834,-1046.1,0.00044657,120]
[330476602,1719470774871,-1541.75,0.00044657,120]
[330476603,1719470774906,-3067.76,0.00044657,120]
[330476604,1719470774942,-1871.0,0.00044657,120]
[330476605,1719470774980,-500.0,0.00044657,120]
[330476606,1719470775017,-500.0,0.00044657,120]
[330476607,1719470775054,-576.51,0.00044657,120]
[330476608,1719470775090,-548.50217291,0.00044657,120]
[330476609,1719470775127,-500.0,0.00044657,120]
[330476610,1719470775164,-500.0,0.00044657,120]
[330476611,1719470775201,-1003.17,0.00044657,120]
[330476612,1719470775237,-1304.5,0.00044657,120]
[330476613,1719470775275,-500.0,0.00044657,120]
[330476614,1719470775313,-879.02,0.00044657,120]
[330476615,1719470775351,-721.95,0.00044657,120]
[330476616,1719470775390,-500.0,0.00044657,120]
[330476617,1719470775430,-574.06,0.00044657,120]
[330476618,1719470775468,-500.0,0.00044657,120]
[330476619,1719470775506,-500.0,0.00044657,120]
[330476620,1719470775544,-2226.61,0.00044657,120]
[330476621,1719470775582,-2501.35,0.00044657,120]
[330476622,1719470775621,-951.42,0.00044657,120]
[330476623,1719470775659,-834.19,0.00044657,120]
[330476624,1719470775696,-500.0,0.00044657,120]
[330476625,1719470775733,-500.0,0.00044657,120]
[330476626,1719470775771,-607.02,0.00044657,120]
[330476627,1719470775809,-500.0,0.00044657,120]
[330476628,1719470775845,-500.0,0.00044657,120]
[330476629,1719470775881,-500.0,0.00044657,120]
[330476630,1719470775919,-2615.24,0.00044657,120]
[330476631,1719470775956,-2501.31,0.00044657,120]
[330476632,1719470775992,-500.0,0.00044657,120]
[330476633,1719470776029,-500.0,0.00044657,120]
[330476634,1719470776066,-1566.08,0.00044657,120]
[330476635,1719470776103,-500.0,0.00044657,120]
[330476636,1719470776141,-1063.16,0.00044657,120]
[330476637,1719470776179,-1538.18,0.00044657,120]
[330476638,1719470776221,-548.81,0.00044657,120]
[330476639,1719470776261,-500.0,0.00044657,120]
[330476640,1719470776301,-620.90679307,0.00044657,120]
[330476641,1719470776338,-500.0,0.00044657,120]
[330476642,1719470776375,-500.0,0.00044657,120]
[330476643,1719470776412,-2319.49,0.00044657,120]
[330476644,1719470776451,-500.0,0.00044657,120]
[330476645,1719470776488,-1643.89,0.00044657,120]
[330476646,1719470776524,-500.0,0.00044657,120]
[330476647,1719470776566,-500.0,0.00044657,120]
[330476648,1719470776602,-2222.84,0.00044657,120]
[330476649,1719470776639,-727.31,0.00044657,120]
[330476650,1719470776675,-2049.55,0.00044657,120]
[330476651,1719470776710,-2335.18,0.00044657,120]
[330476652,1719470776746,-792.45,0.00044657,120]
[330476653,1719470776782,-500.0,0.00044657,120]
[330476654,1719470776818,-747.69,0.00044657,120]
[330476655,1719470776856,-997.67,0.00044657,120]
[330476656,1719470776895,-565.2,0.00044657,120]
[330476657,1719470776931,-500.0,0.00044657,120]
[330476658,1719470776968,-500.0,0.00044657,120]
[330476659,1719470777006,-1048.58,0.00044657,120]
[330476660,1719470777044,-581.97,0.00044657,120]
[330476661,1719470777081,-543.02,0.00044657,120]
[330476662,1719470777121,-500.0,0.00044657,120]
[330476663,1719470777159,-500.0,0.00044657,120]
[330476664,1719470777199,-500.0,0.00044657,120]
[330476665,1719470777238,-500.0,0.00044657,120]
[330476666,1719470777276,-174.84199646,0.00044657,120]
[330476667,1719470777316,-1840.86,0.00044657,120]
[330476668,1719470777354,-1367.68,0.00044657,120]
[330476669,1719470777392,-500.0,0.00044657,120]
[330476670,1719470777434,-846.38,0.00044657,120]
[330476671,1719470777475,-1518.38,0.00044657,120]
[330476672,1719470777511,-1190.23,0.00044657,120]
[330476673,1719470777549,-1232.26,0.00044657,120]
[330476674,1719470777585,-500.0,0.00044657,120]
[330476675,1719470777623,-1670.85,0.00044657,120]
[330476676,1719470777658,-500.0,0.00044657,120]
[330476677,1719470777695,-500.0,0.00044657,120]
[330476678,1719470778042,-500.0,0.00044657,120]
[330476679,1719470778081,-2921.04,0.00044657,120]
[330476680,1719470778122,-738.36,0.00044657,120]
[330476681,1719470778160,-500.0,0.00044657,120]
[330476682,1719470778197,-609.6,0.00044657,120]
[330476683,1719470778237,-1022.95,0.00044657,120]
[330476684,1719470778275,-500.0,0.00044657,120]
[330476685,1719470778313,-500.0,0.00044657,120]
[330476686,1719470778350,-2298.25,0.00044657,120]
[330476687,1719470778387,-500.0,0.00044657,120]
[330476688,1719470778426,-1715.04,0.00044657,120]
[330476689,1719470778465,-500.0,0.00044657,120]
[330476690,1719470778504,-5051.87,0.00044657,120]
[330476691,1719470778544,-552.27,0.00044657,120]
[330476692,1719470778582,-500.0,0.00044657,120]
[330476693,1719470778623,-500.0,0.00044657,120]
[330476694,1719470778663,-500.0,0.00044657,120]
[330476695,1719470778703,-500.0,0.00044657,120]
[330476696,1719470778741,-532.9440803,0.00044657,120]
[330476697,1719470778780,-500.0,0.00044657,120]
[330476698,1719470778820,-1084.3,0.00044657,120]
[330476699,1719470778857,-500.0,0.00044657,120]
[330476700,1719470778893,-500.0,0.00044657,120]
[330476701,1719470778931,-548.75623718,0.00044657,120]
[330476702,1719470778970,-500.0,0.00044657,120]
[330476703,1719470779006,-500.0,0.00044657,120]
[330476704,1719470779043,-563.99,0.00044657,120]
[330476705,1719470779080,-500.0,0.00044657,120]
[330476706,1719470779119,-500.0,0.00044657,120]
[330476707,1719470779157,-500.0,0.00044657,120]
[330476708,1719470779197,-725.04,0.00044657,120]
[330476709,1719470779233,-500.0,0.00044657,120]
[330476710,1719470779271,-500.0,0.00044657,120]
[330476711,1719470779307,-2049.92,0.00044657,120]
[330476712,1719470779345,-500.0,0.00044657,120]
[330476713,1719470779381,-500.0,0.00044657,120]
[330476714,1719470779418,-718.17,0.00044657,120]
[330476715,1719470779454,-1276.49,0.00044657,120]
[330476716,1719470779491,-500.0,0.00044657,120]
[330476717,1719470779528,-522.15,0.00044657,120]
[330476718,1719470779565,-1268.37,0.00044657,120]
[330476719,1719470779600,-500.0,0.00044657,120]
[330476720,1719470779637,-1526.45,0.00044657,120]
[330476721,1719470779671,-500.0,0.00044657,120]
[330476722,1719470779707,-500.0,0.00044657,120]
[330476723,1719470779741,-4324.46,0.00044657,120]
[330476724,1719470779774,-500.0,0.00044657,120]
[330476725,1719470779809,-699.36,0.00044657,120]
[330476726,1719470779845,-500.0,0.00044657,120]
[330476727,1719470779880,-696.16,0.00044657,120]
[330476728,1719470779915,-1864.6,0.00044657,120]
[330476729,1719470779950,-2187.6,0.00044657,120]
[330476730,1719470779984,-500.0,0.00044657,120]
[330476731,1719470780019,-1496.44,0.00044657,120]
[330476732,1719470780056,-500.0,0.00044657,120]
[330476733,1719470780091,-500.0,0.00044657,120]
[330476734,1719470780131,-500.0,0.00044657,120]
[330476735,1719470780169,-500.0,0.00044657,120]
[330476736,1719470780205,-500.0,0.00044657,120]
[330476737,1719470780241,-606.91,0.00044657,120]
[330476738,1719470780279,-656.81,0.00044657,120]
[330476739,1719470780316,-4053.69,0.00044657,120]
[330476740,1719470780352,-321.6640975,0.00044657,120]
[330476741,1719470780389,-1623.32,0.00044657,120]
[330476742,1719470780426,-500.0,0.00044657,120]
[330476743,1719470780462,-654.85,0.00044657,120]
[330476744,1719470780500,-1297.57,0.00044657,120]
[330476745,1719470780540,-552.9,0.00044657,120]
[330476746,1719470780579,-1423.34,0.00044657,120]
[330476747,1719470780616,-1928.61,0.00044657,120]
[330476748,1719470780654,-1548.18,0.00044657,120]
[330476749,1719470780759,-797.49,0.00044657,120]
[330476750,1719470780798,-500.0,0.00044657,120]
[330476751,1719470780840,-1130.37,0.00044657,120]
[330476752,1719470780881,-1267.08,0.00044657,120]
[330476753,1719470780918,-500.0,0.00044657,120]
[330476754,1719470780955,-504.28,0.00044657,120]
[330476755,1719470780993,-1862.28,0.00044657,120]
[330476756,1719470781031,-500.0,0.00044657,120]
[330476757,1719470781070,-500.0,0.00044657,120]
[330476758,1719470781108,-560.09,0.00044657,120]
[330476759,1719470781143,-500.0,0.00044657,120]
[330476760,1719470781181,-500.0,0.00044657,120]
[330476761,1719470781222,-3128.17,0.00044657,120]
[330476762,1719470781259,-500.0,0.00044657,120]
[330476763,1719470781297,-436.78757713,0.00044657,120]
[330476764,1719470781334,-851.58,0.00044657,120]
[330476765,1719470781371,-766.04,0.00044657,120]
[330476766,1719470781407,-500.0,0.00044657,120]
[330476767,1719470781443,-500.0,0.00044657,120]
[330476768,1719470781480,-507.85,0.00044657,120]
[330476769,1719470781516,-798.94,0.00044657,120]
[330476770,1719470781554,-1773.55,0.00044657,120]
[330476771,1719470781592,-500.0,0.00044657,120]
[330476772,1719470781634,-1353.25,0.00044657,120]
[330476773,1719470781669,-200.0,0.00044657,120]
[330476774,1719470781705,-500.0,0.00044657,120]
[330476775,1719470781741,-500.0,0.00044657,120]
[330476776,1719470781777,-1674.58,0.00044657,120]
[330476777,1719470781814,-500.0,0.00044657,120]
[330476778,1719470781852,-311.05196901,0.00044657,120]